Cogmind - Beta 15 @@@ ROGUE MODE // 2025.06.22 @ 19:05:47 Player: ptdel Result: Destroyed by X-57 Shotgunner with High-powered Shotgun Performance ------------- Evolutions (2) 1000 Regions Visited (3) 600 Robots Destroyed (101) 505 Value Destroyed (2677) 2677 Prototype IDs (14) 280 Alien Tech Used (0) 0 Bonus (24) 24 TOTAL SCORE: 5086 Bonus ------- High Alert Combat Kills 24 Cogmind --------- Core Integrity 0/550 Matter 299/300 Energy 100/100 System Corruption 1% Temperature Cool (0) Movement Core (50) Location -8/Materials Parts ------- > --- POWER (1) -------- (None) > --- PROPULSION (4) --- (None) > --- UTILITY (4) ------ Terrain Scan Processor > --- WEAPON (2) ------- Scythe > --- INVENTORY (5) ---- Deuterium Engine Improved Deuterium Engine Xenon Bombardment Thruster Improved Terrain Scanner Transmission Jammer Peak State ------------ > --- POWER ------------ Cooled Ion Engine > --- PROPULSION ------- Armored Treads Armored Treads Armored Treads Advanced Treads > --- UTILITY ---------- Huge Storage Unit Improved Terrain Scanner Terrain Scan Processor Improved Power Shielding > --- WEAPON ----------- Heavy Laser Heavy Assault Rifle > --- INVENTORY -------- Deuterium Engine Light Nuclear Core Light Nuclear Core Light Nuclear Core Light Nuclear Core Improved Deuterium Engine Improved Deuterium Engine Improved Deuterium Engine Improved Deuterium Engine Improved VTOL Module Xenon Bombardment Thruster Xenon Bombardment Thruster Xenon Bombardment Thruster Cryofiber Web Improved Heat Sink Melee Analysis Suite Actuator Array Actuator Array Actuator Array Mini Grenade Launcher Missile Launcher Hammer Scythe [Rating: 37] Favorites ----------- Power Cooled Ion Engine Engine Cooled Ion Engine Propulsion Armored Treads Treads Armored Treads Flight Unit Xenon Bombardment Thruster Utility Improved Light Armor Plating Device Improved Terrain Scanner Storage Huge Storage Unit Processor Terrain Scan Processor Protection Improved Light Armor Plating Weapon Assault Rifle Energy Gun Heavy Laser Ballistic Gun Assault Rifle Launcher Mini Grenade Launcher Slashing Weapon Scythe Build | -11 -10 -9 -8 ------- Run | Yrd Mat Mat Mat Slots Evolved 4 | . . 2 2 Power . | . . . . Propulsion 2 | . . . 2 Utility 2 | . . 2 . Weapon . | . . . . Parts Attached 43 | 7 1 14 21 Power 3 | 1 . 1 1 Engine 3 | 1 . 1 1 Core . | . . . . Reactor . | . . . . Propulsion 13 | 2 . 2 9 Treads 12 | 2 . 2 8 Leg . | . . . . Wheel . | . . . . Hover . | . . . . Flight 1 | . . . 1 Utility 16 | 1 1 10 4 Device 3 | . . 2 1 Storage 3 | 1 . 2 . Processor 2 | . . 2 . Hackware . | . . . . Protection 8 | . 1 4 3 Artifact . | . . . . Weapon 11 | 3 . 1 7 Energy Gun 2 | . . . 2 Energy Cannon . | . . . . Ballistic Gun 6 | 3 . 1 2 Ballistic Cannon . | . . . . Launcher 2 | . . . 2 Special Weapon . | . . . . Impact Weapon . | . . . . Slashing Weapon 1 | . . . 1 Piercing Weapon . | . . . . Special Melee Weapon . | . . . . Unidentified Prototypes 2 | . . 1 1 Parts Lost 22 | . . 5 17 Power 2 | . . 1 1 Propulsion 8 | . . . 8 Utility 4 | . . 3 1 Weapon 8 | . . 1 7 Highest Loss Streak 9 | . . 1 9 To Critical Strikes . | . . . . Average Backups 13 | 2 7 8 22 Power 4 | . 1 2 8 Propulsion 2 | . . 2 4 Utility 2 | . 2 1 5 Weapon 3 | . 3 2 4 Tool/Special . | . . . . Unused Backups 34 | . 3 3 28 Power 14 | . . 1 13 Propulsion 6 | . 1 . 5 Utility 8 | . . 1 7 Weapon 6 | . 2 1 3 Tool/Special . | . . . . Average Slot Usage (%) 97 | . 95 99 96 Engine 10 | . 14 10 8 Treads 28 | . 28 22 35 Device 5 | . . 3 10 Storage 10 | . 14 11 8 Processor 4 | . . 1 9 Protection 15 | . 9 27 7 Energy Gun 2 | . . . 5 Ballistic Gun 19 | . 28 21 10 Peak Build Rating 37 | 6 8 24 37 Average Rating 22 | 4 7 22 31 On Entrance 8 | . 6 8 21 Naked Turns . | . . . . Heaviest Build 111 | 14 15 100 111 Greatest Support 82 | 40 40 40 82 Greatest Overweight (x) 4 | 4 . 2 2 Average Overweight (x) . | . . . 1 Largest Inventory Capacity 25 | 8 8 25 25 Average Capacity 16 | 7 8 13 24 Most Carried 25 | 5 8 14 25 Average Carried 13 | 2 7 8 22 Final Capacity 25 | 8 8 25 5 Final Carried 12 | 2 8 12 5 Class Distribution -------------------- 100% | Mutant Dominant Class ---------------- Mutant | -10/Materials Mutant | -9/Materials Mutant | -8/Materials Resources | -11 -10 -9 -8 ----------- Run | Yrd Mat Mat Mat Matter Collected 2074 | 190 367 836 681 Remotely . | . . . . Salvage Created 3355 | . 443 1606 1306 Parts 242 | . 32 111 99 Haulers Intercepted 2 | . . . 2 Recyclers Shooed 2 | . . 2 . Parts Field Recycled . | . . . . Retrieved Matter . | . . . . Parts Self-Destructed . | . . . . Prevented . | . . . . Kills | -11 -10 -9 -8 ------- Run | Yrd Mat Mat Mat Combat Hostiles Destroyed 76 | . 11 36 29 Guns 66 | . 11 36 19 AOE 10 | . . . 10 Classes Destroyed 10 | . 4 2 4 Worker 6 | . 1 2 3 Builder 4 | . . . 4 Tunneler 1 | . . . 1 Hauler 2 | . . . 2 Recycler 3 | . . 3 . Watcher 9 | . 2 3 4 Swarmer 23 | . 3 10 10 Grunt 36 | . 8 19 9 Sentry 15 | . . 7 8 Specialist 2 | . . . 2 Best Kill Streak 10 | . 2 6 10 Combat Bots Only 8 | . 2 6 8 Max Kills in Single Turn 2 | . 1 2 2 Gunslinging 1 | . . 1 . Exploded 2 | . . . 2 Melee . | . . . . Uniques/NPCs Destroyed . | . . . . Combat | -11 -10 -9 -8 -------- Run | Yrd Mat Mat Mat Hostile Shots Fired 562 | . 50 198 314 Missed 173 | . 14 53 106 Hits 389 | . 36 145 208 Projectile 389 | . 36 145 208 Critical Strikes 17 | . . 2 15 Actively Blocked 1 | . . . 1 Damage Taken 5303 | . 358 1652 3293 Core 858 | . 66 237 555 Absorbed by Shields . | . . . . Redirected to Shielding 85 | . 3 . 82 Regen/Repaired (Parts) 171 | . . 89 82 Core Remaining (%) 71 | 100 73 40 . Volleys Fired 259 | . 49 116 94 Largest 2 | . 2 2 2 Hottest 105 | . 40 43 105 Shots Fired 491 | . 98 232 161 Gun 478 | . 98 232 148 Cannon . | . . . . Launcher 13 | . . . 13 Special . | . . . . Kinetic 435 | . 98 232 105 Thermal 21 | . . . 21 Explosive 13 | . . . 13 Electromagnetic 22 | . . . 22 Robot Hit Streak 21 | . 6 21 15 Robot Miss Streak 4 | . 4 4 4 Penetration Max . | . . . . Secondary Targets 5 | . . 3 2 Max Gunslinging Chain 1 | . . 1 1 Shots Hit Robots 330 | . 62 158 110 Core Hits 159 | . 22 71 66 Critical Kills 1 | . . 1 . Critical Parts Destroyed 2 | . . 1 1 Critical Strikes 4 | . . 2 2 Burn 1 | . . . 1 Destroy 3 | . . 2 1 Melee Attacks 5 | . . . 5 Impact . | . . . . Slashing 5 | . . . 5 Piercing . | . . . . Sneak Attacks . | . . . . Combat Hostiles . | . . . . Follow-up Attacks . | . . . . Damage Inflicted 5712 | . 825 2182 2705 Guns 4562 | . 818 2153 1591 Cannons . | . . . . Explosions 1084 | . . . 1084 Melee 30 | . . . 30 Ramming 36 | . 7 29 . Kinetic 3918 | . 818 2153 947 Thermal 482 | . . . 482 Explosive 953 | . . . 953 Electromagnetic 293 | . . . 293 Impact . | . . . . Slashing 30 | . . . 30 Piercing . | . . . . Highest Corruption 1 | . . . 1 Average Corruption 1 | . . . 1 Corruption Purged . | . . . . Corruption Blocked . | . . . . Effects 2 | . . . 2 Message Errors 1 | . . . 1 Matter Fused 1 | . . . 1 Overload Shots . | . . . . Overflow Damage 100 | . . . 100 Projectiles . | . . . . Explosions 100 | . . . 100 Melee . | . . . . Knockbacks . | . . . . Impact . | . . . . Kinetic . | . . . . Secondary . | . . . . Self-Inflicted Damage 216 | . . . 216 Shots 6 | . . . 6 Rammed 5 | . 1 4 . Targets Rammed 5 | . 1 4 . Kicked . | . . . . Crushed . | . . . . Highest Temperature 153 | . 5 21 153 Average Temperature 26 | . 2 3 39 Received Heat Transfer 1467 | . 147 591 729 Siege Activations . | . . . . Martial Activations . | . . . . Shielding Activations . | . . . . Robots Disrupted . | . . . . Combat Hostiles . | . . . . Robots Corrupted . | . . . . Combat Hostiles . | . . . . Parts Fried . | . . . . Impact Corruptions . | . . . . Robots Melted . | . . . . Combat Hostiles . | . . . . Parts Melted 1 | . . . 1 Heat Transferred 840 | . . . 840 Parts Sabotaged . | . . . . Parts Stolen . | . . . . Parts Stripped . | . . . . Power Chain Reactions 1 | . . . 1 Alert | -11 -10 -9 -8 ------- Run | Yrd Mat Mat Mat Maximum Alert Level 2 | . . 1 2 Low Security (%) 67 | 100 100 66 46 Level 1 27 | . . 33 40 Level 2 4 | . . . 13 Level 3 . | . . . . Level 4 . | . . . . Level 5 . | . . . . High Security . | . . . . Max Security . | . . . . Peak Influence 476 | . 62 310 476 Initial 117 | . . 1 117 Average 133 | . 18 139 207 Influence Increases 2391 | . 348 1108 935 Destroy 0b10 Robot/C 1520 | . 220 720 580 Destroy 0b10 Robot/NC 125 | . 15 40 70 Destroy Leader 402 | . 54 186 162 Successful Hack 79 | . 26 34 19 Disable Machine 45 | . 15 . 30 Destroy Structure 70 | . 3 8 59 Lose Combat Pursuer 150 | . 15 120 15 Influence Decreases 2137 | . 342 836 959 Entered New Map 166 | . . 5 161 Time Decay 1370 | . 342 540 488 Lost Part 210 | . . 50 160 Purge Threat 391 | . . 241 150 Squads Dispatched 15 | . 2 6 7 Investigation 6 | . 1 3 2 Extermination . | . . . . Reinforcement 9 | . 1 3 5 Assault . | . . . . Garrison . | . . . . Intercept . | . . . . Searches Triggered . | . . . . Construction Impeded . | . . . . Haulers Reinforced . | . . . . Active Scanning Responses . | . . . . Cargo Convoy Interrupts . | . . . . Stealth | -11 -10 -9 -8 --------- Run | Yrd Mat Mat Mat Distress Signals 10 | . 4 4 2 Communications Jammed . | . . . . Distress Signals . | . . . . Times Spotted 128 | . 25 54 49 Peak Tracking Total 7 | . 4 6 7 Tactical Retreats 7 | . 1 5 1 Traps | -11 -10 -9 -8 ------- Run | Yrd Mat Mat Mat Traps Triggered 5 | . 1 1 3 Indirectly . | . . . . Trap Hack Attempts . | . . . . Triggered . | . . . . Disarmed 3 | . . 3 . Reprogrammed . | . . . . Reused . | . . . . Traps Extracted . | . . . . Installed . | . . . . Triggered . | . . . . Machines | -11 -10 -9 -8 ---------- Run | Yrd Mat Mat Mat Machines Disabled 3 | . 1 . 2 Max in Single Turn 1 | . 1 . 1 Garrison Access 1 | . . . 1 Machines Repaired . | . . . . Machines Dismantled . | . . . . Machines Sabotaged . | . . . . Overloaded Fab Kills . | . . . . Hacking | -11 -10 -9 -8 --------- Run | Yrd Mat Mat Mat Machines Accessed 29 | . 7 11 11 Terminals 22 | . 7 8 7 Fabricators . | . . . . Repair Stations 2 | . . 1 1 Recycling Units . | . . . . Scanalyzers 4 | . . 2 2 Garrison Access 1 | . . . 1 Total Hacks 97 | . 28 40 29 Successful 52 | . 14 21 17 Failed 45 | . 14 19 12 Catastrophic 10 | . 4 4 2 Database Lockouts . | . . . . Manual 3 | . 3 . . Terminals 77 | . 28 30 19 Fabricators . | . . . . Repair Stations 4 | . . 2 2 Recycling Units . | . . . . Scanalyzers 15 | . . 8 7 Garrison Access 1 | . . . 1 Terminal Hacks 36 | . 14 13 9 Record 5 | . 2 2 1 Robot Analysis 3 | . 3 . . Prototype ID Bank 8 | . 3 4 1 Branch Access Points 1 | . 1 . . Emergency Access Points 1 | . . . 1 Alert Level 1 | . . . 1 Unreport Threat 4 | . . 3 1 Locate Traps 2 | . 2 . . Disarm Traps 1 | . . 1 . Dispatch Records 1 | . 1 . . Zone Layout 9 | . 2 3 4 Fabricator Hacks . | . . . . Repair Station Hacks 4 | . . 2 2 Scan Component 2 | . . 1 1 Repair 2 | . . 1 1 Recycling Unit Hacks . | . . . . Scanalyzer 11 | . . 6 5 Insert Component 7 | . . 4 3 Analyze 4 | . . 2 2 Garrison Access Hacks 1 | . . . 1 Seal Access 1 | . . . 1 Unauthorized Hacks . | . . . . Terminals . | . . . . Fabricators . | . . . . Repair Stations . | . . . . Recycling Units . | . . . . Scanalyzers . | . . . . Garrison Access . | . . . . Data Cores Recovered . | . . . . Used . | . . . . Hacking Detections 27 | . 7 10 10 Full Trace Events 6 | . . 2 4 Feedback Events . | . . . . Feedback Blocked . | . . . . Robot Schematics Acquired . | . . . . Robots Built . | . . . . Authchips . | . . . . Time . | . . . . Total Robot Build Rating . | . . . . Part Schematics Acquired 3 | . . 2 1 Parts Built . | . . . . Authchips . | . . . . Time . | . . . . Total Part Build Rating . | . . . . Parts Repaired 2 | . . 1 1 Time 64 | . . 26 38 Parts Recycled . | . . . . Recycled Matter . | . . . . Retrieved Matter . | . . . . Retrieved Components . | . . . . Parts Scanalyzed 5 | . . 2 3 Part Schematics Acquired 3 | . . 2 1 Parts Damaged 1 | . . . 1 Bothacking | -11 -10 -9 -8 ------------ Run | Yrd Mat Mat Mat Used RIF Installer . | . . . . Robots Hacked . | . . . . Non-combat . | . . . . Combat . | . . . . Robot Hacks Applied . | . . . . Relay Couplers Released . | . . . . Fabnet Peak Effective % . | . . . . Robots Rewired . | . . . . Allies Hacked . | . . . . Hacks Repelled . | . . . . Allies | -11 -10 -9 -8 -------- Run | Yrd Mat Mat Mat Total Allies . | . . . . Largest Group . | . . . . Highest-Rated Group . | . . . . Highest-Rated Ally . | . . . . Total Orders . | . . . . Ally Attacks . | . . . . Total Damage . | . . . . Kills . | . . . . Allies Corrupted . | . . . . Allies Melted . | . . . . Intel | -11 -10 -9 -8 ------- Run | Yrd Mat Mat Mat Active Infowar (turns) 2078 | . . 27 2051 Sensors 27 | . . 27 . Terrain 2051 | . . . 2051 Robot Analysis Total 3 | . 3 . . Derelict Logs Recovered . | . . . . Drone Launches . | . . . . Drone Recoveries . | . . . . Exploration | -11 -10 -9 -8 ------------- Run | Yrd Mat Mat Mat Turns Passed 6280 | 72 1540 2318 2350 Spaces Moved 2512 | 40 843 853 776 Core 17 | 17 . . . Treads 2494 | 23 843 853 775 Legs . | . . . . Wheels . | . . . . Hover . | . . . . Flight 1 | . . . 1 Fastest Speed 50 | 50 160 160 220 Average Speed 202 | 143 160 211 243 Slowest Speed 330 | 250 160 330 247 Overloaded Moves . | . . . . Propulsion Burnouts . | . . . . Robots Hopped . | . . . . Potential Cave-ins . | . . . . Cave-ins Triggered . | . . . . Exploration Rate (%) 62 | 4 96 74 76 Regions Visited 3 Branch Regions . Pre-discovered Areas . | . . . . Known Exits Taken . | . . . . Unknown Exits Taken 3 | 1 1 1 . Scrap Searched . | . . . . Spaces Dug . | . . . . Terrain Destroyed 60 | . . . 60 Melee . | . . . . Projectile . | . . . . AOE 60 | . . . 60 Terrain Rammed . | . . . . Walls Destroyed . | . . . . Machines Disabled . | . . . . Actions | -11 -10 -9 -8 --------- Run | Yrd Mat Mat Mat Total 3201 | 54 938 1136 1073 Wait 243 | . 30 115 98 Move 2509 | 39 842 852 776 Hop . | . . . . Pick Up 90 | 8 11 23 48 Fast Attach . | . . . . Attach 33 | 6 1 8 18 Detach . | . . . . Swap 22 | 1 . 8 13 Drop 35 | . 4 10 21 Fire 259 | . 49 116 94 Melee 5 | . . . 5 Ram . | . . . . Kick . | . . . . Crush 5 | . 1 4 . Escape Stasis . | . . . . Rewire . | . . . . Trap . | . . . . Miscellaneous . | . . . . Route ------- -11/Scrapyard -10/Materials (discovered 5 exits: *Mat x3 / *Min x2) -9/Materials (discovered 2 exits: *Mat / [*Min]) -8/Materials (discovered 3 exits: [*Fac x3]) History --------- Turn | Location | Event 16 | -11/Scrapyard | Discovered new exit (range 15) 73 | -11/Scrapyard | Entered Materials 77 | -10/Materials | Discovered new exit (range 12) 302 | -10/Materials | Build established: Mutant 475 | -10/Materials | Discovered new exit (range 9) 495 | -10/Materials | Identified exit to Mines 946 | -10/Materials | Discovered new exit (range 16) 1071 | -10/Materials | Discovered new exit (range 13) 1607 | -10/Materials | Discovered new exit (range 5) 1613 | -10/Materials | Entered another Materials area 1613 | -9/Materials | Evolved 2 slots: Utility x2 2027 | -9/Materials | Discovered new exit (range 14) 2352 | -9/Materials | Repaired Assault Rifle 2420 | -9/Materials | Discovered new exit (range 15) 3576 | -9/Materials | Core integrity fell below 50% 3931 | -9/Materials | Entered another Materials area 3931 | -8/Materials | Evolved 2 slots: Propulsion x2 4273 | -8/Materials | Discovered new exit (range 6) 4714 | -8/Materials | Discovered new exit (range 13) 5153 | -8/Materials | Destroyed 8 combat bots 5431 | -8/Materials | Discovered new exit (range 16) 5869 | -8/Materials | Repaired Imp. Power Shielding 6270 | -8/Materials | Core integrity fell below 50% 6276 | -8/Materials | Core integrity fell below 20% 6281 | -8/Materials | Destroyed by X-57 Shotgunner with High-powered Shotgun Last Messages --------------- 06266_ U-05 Engineer builds a Wall. 06268_ Dropped Huge Storage Unit. 06269_ Knocked back. 06270_ U-05 Engineer lays Concrete. 06271_ Acquired Xenon Bombardment Thruster. 06272_ U-05 Engineer builds a Wall. 06274_ Hrd. Medium Armor Plating destroyed. 06274_ Lgt. Treads destroyed. 06274_ X-57 Shotgunner suffers critical hit (Burn). 06275_ Cld. Ion Engine destroyed. 06276_ U-05 Engineer lays Concrete. 06276_ Critical hit (Burn: +37). 06277_ U-05 Engineer lays Concrete. 06278_ S-10 Pest destroyed. 06279_ Acquired 19 matter. 06279_ K-01 Serf collects debris. 06279_ U-05 Engineer lays Concrete. 06280_ Xenon Bombardment Thruster destroyed. 06280_ U-05 Engineer lays Concrete. 06280_ Critical hit (Burn: +37). Map ----- +----------------------------------------------------+ | / """ #??# ####???#????## # | | ###### """ #??# ###################+# | | # ! # """ #??# ##?## | | + # """ #??# ##### | | # # +? "" """ T | | + !############# "Y """"" ##### | | # ##??? ? ????+ "" """"" ##### / | | # #??? "???"??# """"" ######### # | | # #??? ???????# """ # ## # | | # #??#??"? "??# # """## | | # #??# ?? ???# + ] """#### | | #######?#???? ??# !! # """#### | | ####??#?#???? ??? !! # """#?## | | #?#### "????????? !! #[ #### | | " ####??? ?????????? ########### | | " #??#??????#????????? # ## | | " #????????????????????# # # | | " #??##????????????????# + ! # | | ####????????????????## #]! ! # | | #####?#????????????????## # # | | ?##?#??????????????????#u! ########## | | ?#?#?#?#?#?????????????##=*x* #######+########### | | ?#?#???#??????????????#!*kH*###?#% # ### | | ?#????????????????????##=!x!!#??# """ # # | | ??#???#????????????????#***!=*####! """ # + | | ? ???????????????????#%@%=###??# """ ""# # | | ??? ?????????????? ;# % ##?#?# ""# # | | ???? ??????????????#+#"# ###?# """ T"# # | | ??????????????????? ###?#! """ ""# # | | ???? ?????????????? ? #???# """ ""# + | | ???? ????????????? ? ###?# # # | | ???????????????###??#; ################### | | ? ???????????????????###; ####?## ##### | | #??#???????????????????## gg####### ##### | | ??##????????????????? ??# r###??## ##### | | ????#???????????? ?? ?## ###?### """##### | | ?##??????????????? ? ## ####### """#?### | | ?#?##????????#? ? ? ?# # # """##### = | | ???##????????#? ???? ## # #= """### #=% | | ###??? ?????? ? ??## # """ # ["""#####%= | | ? !?????????# ? ?? ??## # """ # = * ## ##= | | #???? ?????? ? ## # """ #####+######## | | ###?#?? ?###?###+### # """ + ==[* | | ???? ? ? # """ #### * | | ???? + #### " = | | ??? ?? ? !== # ! = #### "" | | ####?#???##########+### # #### "= | | ?# ? ?# ] [%[ # #] / ! | | ?# """ ?## ! ![ # # #### ! | | ?# """? ??# = [ # ############### ###### | +----------------------------------------------------+ Best States ------------- Heat Dissipation 45 Energy Generation 14 Energy Capacity 280 Matter Stores 300 Matter Capacity 300 Sight Range 16 Robot Scan Range 14 Terrain Scan Range 16 Terrain Scan Density 85 Armor Coverage 450 Power Shielding 66 Utility Shielding 33 Evasion (%) 50 Recoil Reduction 4 Item Schematics ----------------- Lgt. Nuclear Core | -9/Materials | Scanalyzed Arm. Treads | -9/Materials | Scanalyzed Imp. VTOL Module | -8/Materials | Scanalyzed Robot Schematics ------------------ None Fabricated ------------ Nothing Repaired ---------- Assault Rifle | 11% | -9/Materials Imp. Power Shielding | 18% | -8/Materials Alien Tech Used ----------------- None Achievements -------------- None Challenges ------------ None Game ------ Seed ReinforcedChromaticLaser Manual? 0 Play Time 00:47:49 Cumulative 84.4 hours Start 2025.06.22 @ 17:53:57 End 2025.06.22 @ 19:05:47 Sessions 3 Manual Loads 0 Difficulty Rogue Special Mode None Game No. 106 Rogue 90 Adventurer 15 Explorer 1 Win Type - Total 0 Types 0/0/0/0/0/0/0/0/0/0 Lore% 16 Gallery% 34 Achievement% 39 Wizard Run 0 Options --------- Layout 0 ASCII 0 Keyboard 0 Movement Mouse Keybinds 0 Fullscreen 1 Font 18/SmallcapsGlow Map View 112x50 Zoom Use 0% Tactical HUD 1 Map Filters NONE Filters NONE Steam 1 RUN: 7558f256-b1f3-434a-9636-97af14d5d0bf